bitfinex/quotes_BTCUSD_20220204
["timestamp","ask_amount","ask_price","bid_price","bid_amount"]
[1643964911533,0.05,37940.0,37939.0,0.77889032]
[1643964911733,0.05,37940.0,37939.0,0.321256]
[1643964911982,0.05,37940.0,37938.0,0.39529992]
[1643964912182,0.346185,37939.0,37938.0,0.39529992]
[1643964912384,0.05034201,37940.0,37938.0,0.329417]
[1643964912580,0.05,37940.0,37938.0,0.329417]
[1643964912785,0.05,37940.0,37938.0,0.54530154]
[1643964912786,0.05034201,37940.0,37938.0,0.54530154]
[1643964912981,0.05034201,37940.0,37939.0,0.065883]
[1643964913180,0.05,37940.0,37939.0,0.115883]
[1643964913581,0.05,37940.0,37939.0,0.321256]
[1643964913781,0.05,37940.0,37939.0,0.46556092]
[1643964913985,0.05,37940.0,37939.0,0.19430492]
[1643964914285,0.346185,37940.0,37939.0,0.19430492]
[1643964914585,0.00131261,37941.0,37940.0,0.705367]
[1643964914782,0.05,37951.0,37943.0,0.07166676]
[1643964914983,0.00388181,37947.0,37945.0,0.131734]
[1643964915183,0.00388181,37947.0,37946.0,0.355324]
[1643964915386,0.00388181,37947.0,37946.0,0.405324]
[1643964915634,0.00388181,37947.0,37946.0,0.471191]
[1643964915830,0.0184227,37952.0,37946.0,0.571191]
[1643964915831,0.0684227,37952.0,37946.0,0.571191]
[1643964916031,0.00034027,37951.0,37950.0,0.15]
[1643964916231,0.0684227,37952.0,37951.0,0.05]
[1643964916432,0.08707421,37952.0,37951.0,0.26712837]
[1643964916632,0.06849635,37952.0,37951.0,0.26712837]
[1643964917032,0.06849635,37952.0,37951.0,0.47241637]
[1643964917232,0.66849635,37952.0,37951.0,0.47241637]
[1643964917731,0.66849635,37952.0,37951.0,0.42241637]
[1643964917937,0.66849635,37952.0,37951.0,0.255288]
[1643964918134,0.66849635,37952.0,37950.0,0.18173113]
[1643964918335,0.346185,37951.0,37950.0,0.05]
[1643964918535,0.346185,37951.0,37949.0,0.31346545]
[1643964918733,0.346185,37950.0,37949.0,0.31346545]
[1643964918933,0.346185,37951.0,37949.0,0.31346545]
[1643964919386,0.05,37950.0,37949.0,0.31346545]
[1643964920177,0.05,37950.0,37949.0,0.55264751]
[1643964920378,0.396185,37950.0,37949.0,0.55264751]
[1643964920586,0.05,37950.0,37949.0,0.55264751]
[1643964921083,0.6,37950.0,37949.0,0.70264751]
[1643964921279,0.946185,37950.0,37949.0,0.70264751]
[1643964921482,0.6,37950.0,37949.0,0.90794851]
[1643964921679,0.6,37950.0,37949.0,0.70264751]
[1643964921680,0.396185,37950.0,37949.0,0.70264751]
[1643964922081,0.05097085,37951.0,37949.0,0.99591841]
[1643964922280,0.00097085,37951.0,37950.0,0.205296]
[1643964922480,0.00018511,37952.0,37950.0,0.49928989]
[1643964922680,0.00018511,37952.0,37950.0,0.54928989]
[1643964922886,0.05,37953.0,37951.0,0.29686151]
[1643964923132,0.01836303,37955.0,37953.0,0.065866]
[1643964923133,0.346185,37954.0,37953.0,0.065866]
[1643964923529,0.01836303,37955.0,37953.0,0.33599233]
[1643964923730,0.346149,37954.0,37953.0,0.38599233]
[1643964923930,0.01836303,37955.0,37954.0,0.346149]
[1643964924531,0.0011,37957.0,37954.0,0.346149]
[1643964924732,0.0011,37957.0,37956.0,0.16611495]
[1643964925032,0.797249,37957.0,37953.0,0.05]
[1643964925434,0.346149,37956.0,37953.0,0.05]
[1643964925638,0.346149,37956.0,37950.0,0.05]
[1643964925835,0.346149,37956.0,37949.0,0.265876]
[1643964926036,0.346149,37956.0,37950.0,0.19664467]
[1643964926236,0.346149,37956.0,37950.0,0.24664467]
[1643964926537,0.36582153,37956.0,37951.0,0.05928859]
[1643964926980,0.00097154,37955.0,37951.0,0.05928859]
[1643964927181,0.346149,37954.0,37951.0,0.05928859]
[1643964928183,0.34715497,37954.0,37951.0,0.05928859]
[1643964929182,0.346149,37954.0,37951.0,0.05928859]
[1643964929383,0.34715497,37954.0,37951.0,0.05928859]
[1643964929984,0.34715497,37954.0,37951.0,0.10928859]
[1643964930384,0.346149,37954.0,37951.0,0.10928859]
[1643964930628,0.34715497,37954.0,37951.0,0.10928859]
[1643964930832,0.34715497,37954.0,37951.0,0.05928859]
[1643964931429,0.346149,37954.0,37951.0,0.05928859]
[1643964931629,0.34711817,37954.0,37951.0,0.05928859]
[1643964932029,0.34711817,37954.0,37951.0,0.12515959]
[1643964932630,0.346149,37954.0,37951.0,0.12515959]
[1643964932830,0.34711817,37954.0,37951.0,0.12515959]
[1643964933832,0.346149,37954.0,37951.0,0.12515959]
[1643964934033,0.34711817,37954.0,37951.0,0.12515959]
[1643964934682,0.30072894,37953.0,37951.0,0.05928859]
[1643964934882,0.34711817,37954.0,37951.0,0.05928859]
[1643964934883,0.00096917,37954.0,37951.0,0.05928859]
[1643964935080,0.34648923,37953.0,37951.0,0.05928859]
[1643964935280,0.34712066,37954.0,37951.0,0.05928859]
[1643964935680,0.34746089,37954.0,37951.0,0.05928859]
[1643964935879,0.34712066,37954.0,37951.0,0.05928859]
[1643964936281,0.30186602,37953.0,37952.0,0.065873]
[1643964936482,0.00097165,37954.0,37952.0,0.11856891]
[1643964936680,0.00097165,37954.0,37952.0,0.16856891]
[1643964936681,0.29597779,37954.0,37952.0,0.16856891]
[1643964936881,0.346149,37953.0,37952.0,0.16856891]
[1643964937681,0.346149,37953.0,37952.0,0.05]
[1643964938127,0.346149,37953.0,37951.0,0.05928859]
[1643964938427,0.34648923,37953.0,37951.0,0.05928859]
[1643964938829,0.346149,37954.0,37951.0,0.05928859]
[1643964939031,0.34712049,37954.0,37951.0,0.05928859]
[1643964939229,0.34746072,37954.0,37951.0,0.05928859]
[1643964939530,0.34712049,37954.0,37951.0,0.05928859]
[1643964939930,0.346149,37954.0,37951.0,0.05928859]
[1643964940131,0.34712049,37954.0,37951.0,0.05928859]
[1643964940730,0.34712049,37954.0,37953.0,0.1443673]
[1643964940931,0.34712049,37954.0,37951.0,0.12516059]
[1643964941133,0.346149,37954.0,37951.0,0.17516059]
[1643964941530,0.34648923,37954.0,37951.0,0.05]
[1643964941885,0.34648923,37954.0,37950.0,0.05]
[1643964942081,0.34648923,37954.0,37949.0,0.49109231]
[1643964942480,0.3471205,37954.0,37949.0,0.49109231]
[1643964942781,0.3471205,37954.0,37950.0,0.15]
[1643964943083,0.3471205,37954.0,37951.0,0.05]
[1643964943281,0.3471205,37954.0,37951.0,0.115873]
[1643964943484,0.346149,37954.0,37951.0,0.115873]
[1643964943685,0.3471205,37954.0,37951.0,0.115873]
[1643964943883,0.3471205,37954.0,37951.0,0.065873]
[1643964944084,0.3471205,37954.0,37949.0,0.181743]
[1643964944683,0.346149,37954.0,37949.0,0.181743]
[1643964944886,0.00097151,37953.0,37949.0,0.181743]
[1643964945087,0.346149,37952.0,37949.0,0.33206065]
[1643964945285,0.346149,37952.0,37949.0,0.24103266]
[1643964945632,0.34648923,37952.0,37949.0,0.24103266]
[1643964945832,0.00034023,37952.0,37949.0,0.24103266]
[1643964946033,0.00097151,37953.0,37949.0,0.24103266]
[1643964946237,0.00097151,37953.0,37949.0,0.39396992]
[1643964946433,0.00131174,37953.0,37949.0,0.39396992]
[1643964946634,0.346149,37952.0,37949.0,0.24103266]
[1643964947033,0.34648923,37952.0,37949.0,0.24103266]
[1643964947235,0.346149,37952.0,37949.0,0.24103266]
[1643964947633,0.34648923,37952.0,37949.0,0.24103266]
[1643964947834,0.32468769,37951.0,37949.0,0.24103266]
[1643964948037,0.32502792,37951.0,37949.0,0.24103266]
[1643964948235,0.67117692,37951.0,37949.0,0.05]
[1643964948435,0.29842522,37950.0,37944.0,0.131755]
[1643964948635,0.398749,37949.0,37943.0,0.00097176]
[1643964948839,0.36199556,37948.0,37943.0,0.00097176]
[1643964949036,0.448749,37947.0,37943.0,0.00097176]
[1643964949233,0.58411883,37946.0,37943.0,0.00097176]
[1643964949481,0.346149,37945.0,37940.0,0.21332736]
[1643964949684,0.346149,37945.0,37943.0,0.00097169]
[1643964949884,0.34648923,37945.0,37943.0,0.00097169]
[1643964950283,0.65017023,37945.0,37943.0,0.00097169]
[1643964950683,0.65017023,37945.0,37941.0,0.065891]
[1643964950885,0.65017023,37945.0,37942.0,0.0009717]
[1643964951086,0.65017023,37945.0,37944.0,0.131783]
[1643964951284,0.64983,37945.0,37944.0,0.131783]
[1643964951685,0.64983,37945.0,37943.0,0.06589]
[1643964951888,0.346149,37944.0,37943.0,0.06589]
[1643964952086,0.346149,37944.0,37943.0,0.06686169]
[1643964952284,0.796149,37944.0,37943.0,0.06686169]
[1643964952786,0.45,37944.0,37943.0,0.06686169]
[1643964953232,0.45,37944.0,37943.0,0.06589]
[1643964953434,0.45,37944.0,37942.0,0.00097171]
[1643964953733,0.45,37943.0,37942.0,0.06686271]
[1643964954334,0.45,37943.0,37942.0,0.065891]
[1643964958985,0.346149,37944.0,37942.0,0.065891]
[1643964959488,0.346149,37944.0,37942.0,0.131779]
[1643964959982,0.346149,37944.0,37942.0,0.065891]
[1643964960636,0.00034023,37945.0,37943.0,0.396149]
[1643964960836,0.163,37950.0,37943.0,0.346149]
[1643964960837,0.00034023,37949.0,37943.0,0.346149]
[1643964961037,0.00144023,37950.0,37943.0,0.131752]
[1643964961236,0.00034023,37949.0,37943.0,0.131752]
[1643964961438,0.00144023,37950.0,37945.0,0.14719499]
[1643964961639,0.00034023,37949.0,37945.0,0.14719499]
[1643964961838,0.00144023,37950.0,37945.0,0.14719499]
[1643964962140,0.00034023,37949.0,37947.0,0.065878]
[1643964962338,0.0011,37950.0,37947.0,0.065878]
[1643964962339,0.00144023,37950.0,37947.0,0.065878]
[1643964962538,0.00034023,37949.0,37947.0,0.065878]
[1643964962837,0.00034023,37949.0,37946.0,0.131751]
[1643964963039,0.346149,37948.0,37946.0,0.131751]
[1643964963438,0.34648923,37948.0,37946.0,0.131751]
[1643964963737,0.346149,37948.0,37946.0,0.131751]
[1643964965381,0.346149,37948.0,37947.0,0.06588]
[1643964966585,0.696149,37948.0,37947.0,0.06588]
[1643964968831,0.346149,37948.0,37947.0,0.06588]
[1643964969632,0.746149,37948.0,37947.0,0.06588]
[1643964970333,0.746149,37948.0,37946.0,0.131751]
[1643964970532,1.06201156,37948.0,37946.0,0.131751]
[1643964970732,1.06235179,37948.0,37946.0,0.131751]
[1643964972593,0.66235179,37948.0,37946.0,0.131751]
[1643964972789,0.66201156,37948.0,37946.0,0.131751]
[1643964973190,0.346149,37948.0,37946.0,0.131751]
[1643964973391,0.346149,37948.0,37946.0,0.181751]
[1643964973690,0.346149,37948.0,37946.0,0.131751]
[1643964975494,0.34471874,37948.0,37946.0,0.131751]
[1643964975936,0.395268,37944.0,37943.0,0.131762]
[1643964976234,0.395268,37944.0,37943.0,0.47888273]
[1643964976434,0.395268,37944.0,37943.0,0.52888273]
[1643964976633,0.395268,37944.0,37943.0,0.47888273]
[1643964977038,0.395268,37944.0,37943.0,0.131762]
[1643964977436,0.395268,37944.0,37943.0,0.477942]
[1643964977740,0.395268,37944.0,37943.0,0.131762]
[1643964978337,0.395268,37944.0,37943.0,0.181762]
[1643964978537,0.395268,37944.0,37943.0,0.527942]
[1643964978737,0.395268,37944.0,37943.0,0.46206]
[1643964980182,0.395268,37944.0,37943.0,0.41206]
[1643964980387,0.395268,37944.0,37943.0,0.272761]
[1643964981386,0.395268,37944.0,37943.0,0.322761]
[1643964982386,0.395268,37944.0,37943.0,0.272761]
[1643964983439,0.395268,37944.0,37943.0,0.206881]
[1643964983638,0.395268,37944.0,37942.0,0.26453439]
[1643964984241,0.395268,37944.0,37942.0,0.263528]
[1643964985843,0.395268,37944.0,37942.0,0.253528]
[1643964988984,0.395268,37944.0,37942.0,0.40279112]
[1643964989185,0.395268,37944.0,37943.0,0.06588]
[1643964990385,0.395268,37944.0,37943.0,0.11588]
[1643964994035,0.395268,37944.0,37943.0,0.06588]
[1643964994235,0.395268,37944.0,37943.0,0.11588]
[1643964995683,0.395268,37944.0,37943.0,0.46206]
[1643964995983,0.395268,37944.0,37943.0,0.322761]
[1643964997083,0.395268,37944.0,37943.0,0.272761]
[1643964997283,0.741448,37944.0,37943.0,0.05]
[1643964997486,0.741448,37944.0,37942.0,0.121766]
[1643964997684,0.395268,37944.0,37942.0,0.12273791]
[1643964998736,0.395268,37944.0,37942.0,0.121766]
[1643964999535,0.395268,37944.0,37943.0,0.39618]
[1643964999735,0.395268,37944.0,37943.0,0.306881]
[1643964999935,0.395268,37944.0,37943.0,0.256881]
[1643965000137,0.395268,37944.0,37943.0,0.306881]
[1643965000334,0.395268,37944.0,37943.0,0.256881]
[1643965000534,0.395268,37944.0,37943.0,0.206881]
[1643965000935,0.395268,37944.0,37943.0,0.256881]
[1643965001342,0.395268,37944.0,37943.0,0.206881]
[1643965002191,0.195268,37944.0,37943.0,0.206881]
[1643965003895,0.195268,37944.0,37943.0,0.256881]
[1643965004094,0.195268,37944.0,37943.0,0.05]
[1643965004896,0.195268,37944.0,37943.0,0.39618]
[1643965008543,0.195268,37944.0,37943.0,0.34618]
[1643965010785,0.195268,37944.0,37943.0,0.39618]
[1643965010988,0.195268,37944.0,37943.0,0.34618]
[1643965011186,0.195268,37944.0,37943.0,0.39618]
[1643965012387,0.195268,37944.0,37943.0,0.34618]
[1643965012588,0.195268,37944.0,37943.0,0.39618]
[1643965015844,0.195268,37944.0,37943.0,0.34618]
[1643965016046,1.15820617,37944.0,37942.0,0.12273791]
[1643965016245,1.15820617,37944.0,37938.0,0.4461472]
[1643965016246,0.02393231,37941.0,37938.0,0.4461472]
[1643965016446,1.0,37943.0,37938.0,0.05]
[1643965016447,0.34618,37940.0,37938.0,0.05]
[1643965017087,0.09313336,37939.0,37938.0,0.05]
[1643965018089,0.09313336,37939.0,37938.0,0.065897]
[1643965018290,0.09313336,37939.0,37938.0,0.115897]
[1643965018691,0.43931336,37939.0,37938.0,0.115897]
[1643965019693,0.09313336,37939.0,37938.0,0.115897]
[1643965020095,0.09313336,37939.0,37938.0,0.065897]
[1643965021240,0.43931336,37939.0,37938.0,0.065897]
[1643965021440,0.04920203,37939.0,37938.0,0.40551099]
[1643965024691,0.33870757,37942.0,37938.0,0.40551099]
[1643965024885,0.34618,37941.0,37938.0,0.40551099]
[1643965025285,0.34618,37941.0,37938.0,0.40648228]
[1643965025886,0.42074941,37942.0,37938.0,0.47237528]
[1643965026087,0.08204184,37942.0,37939.0,0.68579399]
[1643965026487,0.195268,37944.0,37939.0,0.68625376]
[1643965026687,0.195268,37944.0,37940.0,0.33961399]
[1643965026886,0.195268,37944.0,37941.0,0.131769]
[1643965027085,0.195268,37944.0,37942.0,0.34936959]
[1643965027290,0.34618,37943.0,37941.0,0.47138299]
[1643965028238,0.195268,37944.0,37941.0,0.52138299]
[1643965029639,0.195268,37944.0,37941.0,0.47138299]
[1643965030843,0.195268,37944.0,37941.0,0.52138299]
[1643965031540,0.195268,37944.0,37942.0,0.05]
[1643965032499,0.195268,37944.0,37941.0,0.52138299]
[1643965032893,0.29391597,37944.0,37941.0,0.52138299]
[1643965033395,0.29391597,37944.0,37941.0,0.71218839]
[1643965033694,0.195268,37944.0,37941.0,0.71218839]
[1643965033895,0.34618,37943.0,37941.0,0.71218839]
[1643965034195,0.34618,37942.0,37941.0,0.64630439]
[1643965034395,0.195268,37944.0,37941.0,0.84396239]
[1643965034594,0.34618,37943.0,37941.0,0.84396239]
[1643965034793,0.34618,37942.0,37941.0,0.79396239]
[1643965035001,0.195268,37944.0,37941.0,0.79396239]
[1643965035198,0.34618,37943.0,37941.0,0.79396239]
[1643965035396,0.34618,37942.0,37941.0,0.79396239]
[1643965035635,0.195268,37944.0,37941.0,0.84396239]
[1643965036235,0.195268,37944.0,37941.0,0.89396239]
[1643965036639,0.195268,37944.0,37943.0,0.73579399]
[1643965037038,0.195268,37944.0,37943.0,0.78579399]
[1643965039592,0.195268,37944.0,37943.0,0.44618]
[1643965040005,0.195268,37944.0,37943.0,1.28351189]
[1643965040202,0.195268,37944.0,37943.0,0.97574557]
[1643965040403,0.01967695,37956.0,37947.0,0.15]
[1643965040594,0.01967695,37956.0,37951.0,0.54631258]
[1643965040595,0.0003403,37953.0,37951.0,0.54631258]
[1643965040795,0.01967695,37956.0,37951.0,0.92018366]
[1643965040796,0.02001725,37956.0,37951.0,0.92018366]
[1643965040998,0.7665,37963.0,37955.0,0.05]
[1643965041224,0.7665,37963.0,37959.0,0.05]
[1643965041395,1.1101,37966.0,37962.0,0.05]
[1643965041597,0.89828,37966.0,37965.0,0.065843]
[1643965041796,0.89828,37966.0,37965.0,0.115843]
[1643965041996,0.34718,37966.0,37965.0,0.115843]
[1643965042194,0.34718,37966.0,37965.0,0.065843]
[1643965042394,0.34718,37966.0,37965.0,0.115843]
[1643965042798,0.34718,37966.0,37965.0,0.065843]
[1643965042996,0.34718,37966.0,37965.0,0.05]
[1643965043655,0.551,37966.0,37965.0,0.05]
[1643965043850,0.89718,37966.0,37965.0,0.05]
[1643965044252,0.88963542,37966.0,37965.0,0.05]
[1643965044453,0.34618,37966.0,37965.0,0.05]
[1643965044657,0.00134168,37967.0,37965.0,0.05]
[1643965044658,0.00134168,37967.0,37965.0,0.115842]
[1643965044855,0.001,37967.0,37965.0,0.115842]
[1643965045458,0.001,37967.0,37966.0,0.142086]
[1643965045655,0.001,37967.0,37966.0,0.43565433]
[1643965045854,0.001,37967.0,37966.0,0.48565433]
[1643965046257,0.35,37966.0,37964.0,0.05347775]
[1643965046559,0.35,37966.0,37964.0,0.34618]
[1643965046757,0.05,37965.0,37964.0,0.34618]
[1643965046990,0.05,37965.0,37964.0,0.412024]
[1643965046991,0.1326317,37965.0,37964.0,0.412024]
[1643965047491,0.05,37965.0,37964.0,0.412024]
[1643965047690,0.05,37965.0,37964.0,0.065844]
[1643965048693,0.39618,37965.0,37964.0,0.065844]
[1643965048892,0.39618,37965.0,37954.0,0.19029273]
[1643965048893,0.39618,37965.0,37959.0,0.131732]
[1643965049195,0.05,37960.0,37959.0,0.131732]
[1643965049593,0.05,37960.0,37959.0,0.181732]
[1643965049992,0.05,37960.0,37959.0,0.131732]
[1643965052744,0.05,37960.0,37959.0,0.527912]
[1643965053545,0.4,37960.0,37959.0,0.527912]
[1643965053744,0.4,37960.0,37959.0,0.131732]
[1643965054247,0.4,37960.0,37959.0,0.477912]
[1643965054487,0.4,37960.0,37959.0,0.131732]
[1643965055288,0.05,37960.0,37959.0,0.477912]
[1643965056490,0.05,37960.0,37959.0,0.527912]
[1643965057289,0.05,37960.0,37959.0,0.477912]
[1643965057489,0.8,37960.0,37959.0,0.477912]
[1643965057690,0.8,37960.0,37959.0,0.131732]
[1643965058737,0.8,37960.0,37959.0,0.477912]
[1643965058738,0.05,37960.0,37959.0,0.477912]
[1643965060538,0.4,37960.0,37959.0,0.131732]
[1643965061341,0.05,37960.0,37959.0,0.131732]
[1643965061541,0.05,37960.0,37959.0,0.477912]
[1643965063089,0.05,37960.0,37959.0,0.543763]
[1643965065392,0.4,37960.0,37959.0,0.477912]
[1643965065638,0.4,37960.0,37959.0,0.131732]
[1643965065838,0.4,37960.0,37959.0,0.477912]
[1643965066039,0.05,37960.0,37959.0,0.477912]
[1643965067241,0.05,37960.0,37959.0,0.34618]
[1643965067441,0.6,37960.0,37959.0,0.34618]
[1643965067641,0.6,37960.0,37959.0,0.206621]
[1643965067841,0.6,37960.0,37959.0,0.34618]
[1643965068043,0.6,37960.0,37959.0,0.206621]
[1643965068242,0.6,37960.0,37959.0,0.34618]
[1643965068442,0.6,37960.0,37959.0,0.206621]
[1643965068642,0.6,37960.0,37959.0,0.34618]
[1643965068845,0.6,37960.0,37959.0,0.206621]
[1643965069043,0.6,37960.0,37959.0,0.34618]
[1643965069242,0.05,37960.0,37959.0,0.206621]
[1643965069897,0.05,37963.0,37959.0,0.35699306]
[1643965070100,0.00034328,37961.0,37960.0,0.34618]
[1643965070296,0.05,37961.0,37960.0,0.34618]
[1643965071900,0.00034328,37964.0,37960.0,0.34618]
[1643965072098,0.05,37963.0,37960.0,0.34618]
[1643965072298,0.00100946,37962.0,37961.0,0.15]
[1643965072599,0.00090205,37962.0,37961.0,0.64301477]
[1643965072999,0.05090205,37962.0,37961.0,0.2066]
[1643965073239,0.05,37962.0,37961.0,0.2066]
[1643965084787,0.0513843,37963.0,37961.0,0.2066]
[1643965084989,0.05104102,37963.0,37962.0,0.411938]
[1643965085187,0.00034328,37964.0,37962.0,0.411938]
[1643965085388,0.00034328,37966.0,37962.0,0.411938]
[1643965085589,0.051041,37964.0,37962.0,0.411938]
[1643965086388,0.05,37964.0,37962.0,0.411938]
[1643965086790,0.001041,37965.0,37962.0,0.411938]
[1643965087100,0.249749,37969.0,37964.0,0.065842]
[1643965087101,0.01,37969.0,37964.0,0.065842]
[1643965087290,0.01,37969.0,37968.0,0.15]
[1643965087491,0.0103448,37969.0,37964.0,0.0726]
[1643965087690,0.0103448,37969.0,37965.0,0.34611]
[1643965087890,0.0103448,37969.0,37968.0,0.15895444]
[1643965088138,0.01,37969.0,37968.0,0.15895444]
[1643965088338,0.01,37969.0,37968.0,0.50506444]
[1643965089139,0.06,37969.0,37968.0,0.50506444]
[1643965091639,0.06,37969.0,37968.0,0.57089644]
[1643965092101,0.01,37969.0,37968.0,0.57089644]
[1643965092501,0.01,37969.0,37968.0,0.85736706]
[1643965092700,0.01,37969.0,37968.0,0.57089644]
[1643965094800,0.01,37969.0,37968.0,0.85590927]
[1643965096646,0.00993672,37969.0,37968.0,0.85590927]
[1643965097145,0.00993672,37969.0,37968.0,0.57089644]
[1643965097945,0.05993672,37969.0,37968.0,0.57089644]
[1643965099047,0.00993672,37969.0,37968.0,0.57089644]
[1643965100494,0.05993672,37969.0,37968.0,0.57089644]
[1643965102194,0.05993672,37969.0,37968.0,0.85591119]
[1643965102795,0.05993672,37969.0,37968.0,0.57089644]
[1643965103442,0.00993672,37969.0,37968.0,0.57089644]
[1643965103641,0.05993672,37969.0,37968.0,0.57089644]
[1643965104041,0.00993672,37969.0,37968.0,0.57089644]
[1643965107193,0.00993672,37969.0,37968.0,0.85653448]
[1643965107994,0.00993672,37969.0,37968.0,0.57089644]
[1643965108594,0.00993672,37969.0,37968.0,0.85886026]
[1643965108994,0.00993672,37969.0,37968.0,1.05542041]
[1643965110645,0.00993672,37969.0,37968.0,0.76745659]
[1643965111047,0.00993672,37969.0,37968.0,0.86194017]
[1643965111446,0.00993672,37969.0,37968.0,1.05850032]
[1643965115295,0.05993672,37969.0,37968.0,1.05850032]
[1643965115497,0.05993672,37969.0,37968.0,0.76745659]
[1643965115897,0.05993672,37969.0,37968.0,0.57089644]
[1643965118561,0.05993672,37969.0,37968.0,0.8575204]
[1643965118961,0.05993672,37969.0,37968.0,1.05408055]
[1643965121263,0.05982204,37969.0,37968.0,1.05408055]
[1643965121663,0.00982204,37969.0,37968.0,1.05408055]
[1643965124801,0.05982204,37969.0,37968.0,1.05408055]
[1643965127450,0.00982204,37969.0,37968.0,1.05408055]
[1643965129495,0.00982204,37969.0,37968.0,0.60850215]
[1643965129697,0.45982204,37969.0,37968.0,0.54267015]
[1643965129895,0.45982204,37969.0,37968.0,0.34611]
[1643965130597,0.00982204,37969.0,37968.0,0.53570966]
[1643965130794,0.35982204,37969.0,37968.0,0.53570966]
[1643965131094,0.35982204,37969.0,37968.0,0.34611]
[1643965131495,0.00982204,37969.0,37968.0,0.34611]
[1643965132795,0.45982204,37969.0,37968.0,0.34611]
[1643965133853,0.45982204,37969.0,37968.0,0.50932969]
[1643965134251,0.45982204,37969.0,37968.0,0.34611]
[1643965135151,0.45982204,37969.0,37968.0,0.51795189]
[1643965135352,0.45982204,37969.0,37968.0,0.34611]
[1643965136996,0.00982204,37969.0,37968.0,0.34611]
[1643965137196,0.00982204,37969.0,37968.0,0.411944]
[1643965139195,0.00982204,37969.0,37968.0,0.57439053]
[1643965142845,0.00982204,37969.0,37968.0,0.91372502]
[1643965143047,0.00959345,37969.0,37968.0,1.11028517]
[1643965143648,0.00959345,37969.0,37968.0,0.77095068]
[1643965145599,0.00959345,37969.0,37968.0,1.11028517]
[1643965145799,0.00959345,37969.0,37968.0,0.77095068]
[1643965149250,0.00959345,37969.0,37968.0,0.57439053]
[1643965149553,0.00959345,37969.0,37968.0,0.77095068]
[1643965150150,0.00959345,37969.0,37968.0,0.57439053]
[1643965151550,0.00959345,37969.0,37968.0,0.91372787]
[1643965151753,0.00959345,37969.0,37968.0,0.57439053]
[1643965152005,0.00959345,37969.0,37968.0,1.07103065]
[1643965152208,0.00959345,37969.0,37968.0,0.8744705]
[1643965152401,0.00959345,37969.0,37968.0,1.07103065]
[1643965157154,0.05304273,37970.0,37969.0,1.4]
[1643965157355,0.052,37970.0,37969.0,1.71108458]
[1643965157552,0.05304273,37970.0,37969.0,2.39054325]
[1643965158554,0.052,37970.0,37969.0,2.39054325]
[1643965159515,0.002,37970.0,37969.0,0.99054325]
[1643965159717,0.002,37970.0,37969.0,1.33909851]
[1643965159917,0.002,37970.0,37969.0,1.14253836]
[1643965160113,0.002,37970.0,37969.0,0.85619999]
[1643965160513,0.002,37970.0,37969.0,0.65963984]
[1643965161313,0.002,37970.0,37969.0,0.95963984]
[1643965161515,0.002,37970.0,37969.0,0.65963984]
[1643965161714,0.002,37970.0,37969.0,0.85619999]
[1643965162114,0.002,37970.0,37969.0,0.65963984]
[1643965165359,0.002,37970.0,37969.0,0.75963984]
[1643965166562,4.271e-05,37972.0,37970.0,0.41191]
[1643965166759,4.271e-05,37972.0,37971.0,1.03048318]
[1643965167007,0.05004271,37972.0,37971.0,1.03048318]
[1643965167206,0.05004271,37972.0,37971.0,1.22704333]
[1643965167408,0.05004271,37972.0,37971.0,1.03048318]
[1643965167607,0.05004271,37972.0,37971.0,1.22704333]
[1643965167811,0.05004271,37972.0,37971.0,1.27704333]
[1643965168008,0.05004271,37972.0,37971.0,1.26249851]
[1643965168207,0.05004271,37972.0,37971.0,1.22704333]
[1643965168610,4.271e-05,37972.0,37971.0,1.22704333]
[1643965168810,0.0003448,37974.0,37972.0,0.75]
[1643965169012,0.0003448,37974.0,37973.0,1.13587659]
[1643965169210,0.0011,37975.0,37973.0,1.13587659]
[1643965169410,0.0014448,37975.0,37974.0,0.29793567]
[1643965169611,0.0011,37975.0,37974.0,0.29793567]
[1643965170211,0.0011,37975.0,37974.0,0.49449582]
[1643965170652,0.00104342,37976.0,37974.0,0.49449582]
[1643965170864,0.00104342,37976.0,37975.0,0.28878329]
[1643965171053,0.00138822,37976.0,37975.0,0.28878329]
[1643965171254,0.05104342,37976.0,37975.0,0.28878329]
[1643965171656,0.05,37976.0,37975.0,0.28878329]
[1643965173355,0.00138821,37977.0,37975.0,0.42041529]
[1643965173554,0.0011,37978.0,37976.0,0.30842251]
[1643965173755,0.00034483,37977.0,37976.0,0.30842251]
[1643965173954,0.00144483,37978.0,37976.0,0.30842251]
[1643965176606,0.05144483,37978.0,37976.0,0.30842251]
[1643965176806,0.00144483,37978.0,37976.0,0.30842251]
[1643965177008,2.01104417,37979.0,37977.0,0.065798]
[1643965177309,2.01104417,37979.0,37978.0,0.41690252]
[1643965177507,1.22148817,37979.0,37978.0,0.76301252]
[1643965177707,1.220444,37979.0,37978.0,0.76301252]
[1643965177908,1.220444,37979.0,37978.0,0.461908]
[1643965178155,1.220444,37979.0,37978.0,0.65846815]
[1643965178753,1.220444,37979.0,37978.0,0.94642942]
[1643965179153,1.220444,37979.0,37978.0,0.74986927]
[1643965179353,1.220444,37979.0,37978.0,0.94642942]
[1643965179553,1.220444,37979.0,37978.0,0.74986927]
[1643965179755,1.220444,37979.0,37978.0,0.89986927]
[1643965179955,1.220444,37979.0,37978.0,1.09642942]
[1643965180254,1.22134517,37979.0,37978.0,0.80846815]
[1643965180454,1.27134517,37979.0,37978.0,0.60846815]
[1643965180853,1.27134517,37979.0,37978.0,0.65846815]
[1643965181052,1.27134517,37979.0,37978.0,0.461908]
[1643965181254,1.27134517,37979.0,37978.0,0.65846815]
[1643965181455,1.27134517,37979.0,37978.0,0.461908]
[1643965181655,1.27134517,37979.0,37978.0,0.65846815]
[1643965181922,1.27134517,37979.0,37978.0,0.461908]
[1643965182611,1.27134517,37979.0,37978.0,0.65846815]
[1643965182810,1.27134517,37979.0,37978.0,0.411908]
[1643965185113,1.27134517,37979.0,37978.0,0.461908]
[1643965185755,1.27134517,37979.0,37978.0,0.77996102]
[1643965185959,1.22134517,37979.0,37978.0,0.77996102]
[1643965186255,1.27134517,37979.0,37978.0,0.65846815]
[1643965186655,1.14389184,37979.0,37978.0,0.411908]